fUSD/lending_fUSD_20240520
["ID","MTS","AMOUNT","RATE_DAILY","PERIOD"]
[327549234,1716220238602,-1100.0,0.000126,4]
[327549235,1716220238611,-1564.60657979,0.0001265,2]
[327549236,1716220238620,-250.0,0.00012675,2]
[327549237,1716220238629,-1244.6805,0.000127,2]
[327549238,1716220238638,-841.8204,0.000127,2]
[327549239,1716220238650,-500.0,0.000127,2]
[327549240,1716220238659,-2005.8594,0.000127,2]
[327549242,1716220238669,-1000.0,0.000127,2]
[327549244,1716220238678,-2500.0,0.000127,2]
[327549246,1716220238687,-1400.0,0.000127,4]
[327549248,1716220238697,-320.8797781,0.000127,2]
[327549250,1716220238706,-642.85374569,0.00012798,2]
[327549252,1716220238715,-156.34895342,0.00012798,2]
[327549254,1716220238725,-817.39975493,0.00012798,2]
[327549256,1716220238734,-99332.70443439,0.000128,2]
[327549267,1716220238826,-8.22511778,0.000128,2]
[327549269,1716220238838,-656.61,0.000128,2]
[327549272,1716220238860,-272.97766749,0.000128,2]
[327549275,1716220238871,-5663.27398607,0.000128,2]
[327549277,1716220238883,-6026.76790956,0.000128,2]
[327549280,1716220238904,-36962.38953883,0.000128,2]
[327549282,1716220238916,-388.13533793,0.000128,2]
[327549286,1716220238946,-5472.48835,0.000128,2]
[327549289,1716220238957,-7642.46724363,0.000128,2]
[327549423,1716220240365,-131319.55626822,0.000128,2]
[327549432,1716220240424,-20234.69999998,0.000128,2]
[327549455,1716220240656,-22300.782624,0.000128,2]
[327549466,1716220240750,-674.3617192,0.000128,2]
[327549468,1716220240761,-708.76708353,0.000128,2]
[327549470,1716220240773,-1556.875,0.000128,2]
[327549478,1716220240850,-361.32,0.000128,2]
[327549481,1716220240861,-432.917,0.000128,2]
[327549594,1716220243452,-934.92756936,0.000128,2]
[327549595,1716220243464,-5245.85519999,0.000128,2]
[327549598,1716220243518,-392.4809798,0.000128,2]
[327549606,1716220243679,-402.976316,0.000128,2]
[327549607,1716220243736,-332.59159891,0.000128,2]
[327549608,1716220243797,-2005.95809824,0.000128,2]
[327549609,1716220243809,-33104.54569411,0.000128,2]
[327549610,1716220243822,-26281.24846298,0.000128,2]
[327549611,1716220243831,-3762.8056,0.000128,2]
[327549612,1716220243841,-165.76896419,0.000128,2]
[327549613,1716220243851,-1800.0,0.000128,4]
[327549614,1716220243860,-195.92344363,0.000128,2]
[327549615,1716220243869,-800.0,0.0001282,2]
[327549616,1716220243879,-1515.16955668,0.00012886,2]
[327549621,1716220244117,-224.40241089,0.00012889,2]
[327549622,1716220244135,-1000.0,0.00012896,2]
[327549623,1716220244145,-500.0,0.00012896,2]
[327549624,1716220244155,-1003.7649267,0.00012898,2]
[327549625,1716220244164,-156.34146276,0.00012898,2]
[327549626,1716220244174,-210.49086009,0.00012898,2]
[327549627,1716220244184,-489.59485286,0.00012898,2]
[327549628,1716220244193,-731.23307714,0.00012898,2]
[327549629,1716220244203,-209.54616572,0.00012898,2]
[327549630,1716220244213,-160.0,0.00012898,2]
[327549631,1716220244222,-8100.81185947,0.00012898,2]
[327549632,1716220244232,-488.71231272,0.00012898,2]
[327549633,1716220244243,-3074.0735374,0.00012898,2]
[327549634,1716220244254,-155.0,0.00012898,2]
[327549635,1716220244264,-657.70960259,0.00012898,2]
[327549636,1716220244274,-158.32414382,0.00012898,2]
[327549637,1716220244284,-156.04687632,0.00012898,2]
[327549638,1716220244300,-709.02554464,0.00012898,2]
[327549639,1716220244310,-318.74671446,0.00012898,2]
[327549640,1716220244319,-324.42510247,0.00012898,2]
[327549641,1716220244329,-377.35579036,0.00012898,2]
[327549642,1716220244338,-207.91047551,0.00012898,2]
[327549643,1716220244348,-623.222624,0.00012898,2]
[327549644,1716220244359,-155.16738635,0.00012898,2]
[327549645,1716220244369,-1153.90392012,0.00012898,2]
[327549646,1716220244380,-374.25206088,0.00012898,2]
[327549647,1716220244389,-2148.96051101,0.00012898,2]
[327549648,1716220244401,-984.98639943,0.00012898,2]
[327549649,1716220244410,-282.33501335,0.00012898,2]
[327549650,1716220244420,-1319.3866235,0.00012898,2]
[327549651,1716220244429,-712.5895165,0.00012898,2]
[327549652,1716220244444,-1380.16157324,0.00012898,2]
[327549653,1716220244453,-155.0,0.00012898,2]
[327549654,1716220244464,-535.53037562,0.00012898,2]
[327549655,1716220244474,-1851.03948899,0.00012898,2]
[327549656,1716220244483,-155.0,0.00012898,2]
[327549657,1716220244493,-1142.10819413,0.00012898,2]
[327549658,1716220244502,-629.53203336,0.00012898,2]
[327549659,1716220244512,-223.04807973,0.00012898,2]
[327549660,1716220244522,-413.87982626,0.00012899,2]
[327549661,1716220244532,-100000.0,0.000129,2]
[327549662,1716220244542,-1000.0,0.000129,2]
[327549663,1716220244551,-34367.6359,0.000129,2]
[327549664,1716220244561,-11170.2215,0.000129,2]
[327549665,1716220244570,-47240.7317,0.000129,2]
[327549666,1716220244580,-3229.1229,0.000129,2]
[327549667,1716220244590,-18026.4836,0.000129,2]
[327549668,1716220244599,-26423.0896,0.000129,2]
[327549669,1716220244609,-172.04122343,0.000129,2]
[327549670,1716220244619,-159.86030902,0.000129,2]
[327549671,1716220244629,-200.20871114,0.000129,2]
[327549672,1716220244638,-9973.63773868,0.000129,2]
[327549673,1716220244649,-1006.68346,0.000129,2]
[327549674,1716220244658,-300.0,0.000129,4]
[327549675,1716220244667,-290.9831787,0.000129,2]
[327549676,1716220244677,-201.75316201,0.000129,2]
[327549677,1716220244686,-3147.77998261,0.00012968,2]
[327549678,1716220244697,-1006.68346,0.0001297,2]
[327549679,1716220244707,-4660.00392166,0.0001298,2]
[327549680,1716220244718,-18257.54168232,0.00012997,2]
[327549681,1716220244727,-295.70616516,0.00012998,2]
[327549682,1716220244738,-216.83381979,0.00012998,2]
[327549683,1716220244748,-406.31002195,0.00012998,2]
[327549684,1716220244758,-157.70718433,0.00012998,2]
[327549685,1716220244767,-239.8592063,0.00012998,2]
[327549686,1716220244777,-162.75297053,0.00012998,2]
[327549687,1716220244786,-317.21570948,0.00012998,2]
[327549688,1716220244796,-156.07906646,0.00012999,2]
[327549689,1716220244808,-231.70018595,0.00012999,2]
[327549690,1716220244818,-208.03626817,0.00012999,2]
[327549691,1716220244827,-4034.75580547,0.00012999,2]
[327549692,1716220244836,-150.0,0.00012999,2]
[327549693,1716220244845,-224013.37177763,0.00013,2]
[327549694,1716220244856,-1713287.53373309,0.00013,2]
[327549695,1716220244888,-1022.48201015,0.00013,2]
[327549696,1716220246506,-329.48165767,0.00012799,2]
[327549697,1716220246515,-174.75418234,0.00012799,2]
[327549698,1716220246555,-1.84862691,0.00012799,2]
[327549699,1716220246566,-7821.82060836,0.00013,2]
[327550493,1716220385773,434.0,0.0001958,15]
[327550494,1716220386350,434.0,0.0001957,15]
[327550495,1716220387275,434.0,0.0001956,15]
[327550496,1716220503898,487.0,0.0001958,15]
[327550497,1716220504432,487.0,0.0001957,15]
[327550498,1716220504992,487.0,0.0001956,15]
[327550499,1716220505528,150.5,0.0001958,15]
[327550500,1716220506270,150.5,0.0001957,15]
[327550501,1716220506677,304.0,0.0001958,15]
[327550502,1716220506795,150.5,0.0001956,15]
[327550503,1716220507197,304.0,0.0001957,15]
[327550504,1716220508719,304.0,0.0001956,15]
[327550505,1716220625532,213.0,0.0001958,15]
[327550506,1716220626432,213.0,0.0001957,15]
[327550507,1716220626989,213.0,0.0001956,15]
[327550508,1716220744578,341.0,0.0001958,15]
[327550509,1716220745900,341.0,0.0001957,15]
[327550510,1716220746064,341.0,0.0001956,15]
[327550511,1716220746123,150.5,0.0001958,15]
[327550512,1716220746829,150.5,0.0001957,15]
[327550513,1716220747963,150.5,0.0001956,15]
[327550514,1716220866863,150.5,0.0001959,15]
[327550515,1716220867767,150.5,0.0001958,15]
[327550516,1716220868755,150.5,0.0001957,15]
[327550517,1716220986122,239.0,0.0001959,15]
[327550518,1716220986643,150.5,0.0001959,15]
[327550519,1716220987489,239.0,0.0001958,15]
[327550520,1716220987539,150.5,0.0001958,15]
[327550521,1716220988029,291.0,0.0001957,15]
[327550522,1716220988563,239.0,0.0001957,15]
[327550523,1716221058609,305.8,0.00010407,2]
[327550524,1716221130185,487.0,0.0002,10]
[327550525,1716221138862,487.0,0.0002,10]
[327550528,1716221224890,167.0,0.0001958,15]
[327550529,1716221225668,167.0,0.0001957,15]
[327550530,1716221225732,150.5,0.0001958,15]
[327550531,1716221225895,167.0,0.0001956,15]
[327550532,1716221226515,234.0,0.0001957,15]
[327551326,1716221432222,-1095.19142246,0.00011197,2]
[327551327,1716221432234,-932.67160565,0.00011197,2]
[327551328,1716221432247,-1512.08653842,0.00011197,2]
[327551329,1716221432258,-3790.01494313,0.00011197,2]
[327551330,1716221432270,-1271.63134525,0.00011197,2]
[327551331,1716221432281,-251.86919556,0.00011197,2]
[327551332,1716221432293,-423.94883635,0.00011197,2]
[327551333,1716221432324,-3944.62544392,0.00011197,2]
[327551334,1716221432355,-4064.81581285,0.00011197,2]
[327551335,1716221432645,487.0,0.0002,10]
[327551349,1716221437539,-852.04391943,0.00011197,2]
[327551351,1716221437549,-402.29831785,0.00011198,2]
[327551353,1716221437559,-1330.016244,0.00011199,2]
[327551355,1716221437569,-151.85,0.0001223,2]
[327551357,1716221437579,-200.0,0.00012283,2]
[327551359,1716221437588,-250.0,0.00012286,2]
[327551361,1716221437598,-250.0,0.00012298,2]
[327551363,1716221437608,-1000.0,0.00012314,2]
[327551365,1716221437617,-12550.8344855,0.00012331,2]
[327551369,1716221437649,-4213.0155145,0.00012331,2]
[327551370,1716221437659,-45.9321455,0.00012341,2]
[327551371,1716221437670,-107.5878545,0.00012341,2]
[327551372,1716221437684,-996.86,0.00012564,2]
[327551373,1716221437693,-1105.3142455,0.00012564,2]
[327551374,1716221437704,-617.5157545,0.00012564,2]
[327551375,1716221437713,-305.8,0.00012671,2]
[327551376,1716221437723,-789.85427492,0.00012798,2]
[327551377,1716221437732,-2473.35,0.00012798,2]
[327551378,1716221437741,-1846.71540396,0.000128,2]
[327551379,1716221437751,-1000.0,0.000128,2]
[327551380,1716221437760,-294.57348617,0.000128,2]
[327551381,1716221437778,-205.41651383,0.000128,2]
[327551382,1716221437788,-2500.0,0.000128,2]
[327551383,1716221437797,-201.96216981,0.00012889,2]
[327551384,1716221437806,-200.0,0.00012896,2]
[327551385,1716221437818,-1000.0,0.00012896,2]
[327551386,1716221437827,-500.0,0.00012896,2]
[327551387,1716221437837,-200.74327173,0.00012898,2]
[327551388,1716221437846,-2251.81864463,0.00012899,2]
[327551389,1716221437858,-5475.96,0.00012899,2]
[327551390,1716221437869,-8156.16,0.00012899,2]
[327551391,1716221437881,-907.87201028,0.00012899,2]
[327551392,1716221437893,-9551.72188254,0.00012899,2]
[327551393,1716221437904,-7031.46746255,0.00012899,2]
[327551394,1716221437913,-698.51973745,0.000129,2]
[327551395,1716221437950,-42056.58462311,0.000129,2]
[327551396,1716221437972,-679.98,0.000129,2]
[327551397,1716221437985,-17493.85892366,0.000129,2]
[327551398,1716221437997,-184071.05671578,0.000129,2]
[327551399,1716221438006,-172.04122342,0.000129,2]
[327551400,1716221438015,-159.86030898,0.000129,2]
[327551401,1716221438025,-9142.50126042,0.000129,2]
[327551402,1716221438035,-320.87977804,0.000129,2]
[327551403,1716221438045,-201.75316201,0.000129,2]
[327551405,1716221438055,-193.9887858,0.000129,2]
[327551406,1716221438064,-3834.31194445,0.000129,2]
[327551408,1716221438073,-151.85412208,0.000129,2]
[327551409,1716221438083,-205.41424698,0.0001299,2]
[327551410,1716221438093,-210.88346445,0.00012997,2]
[327551411,1716221438102,-51486.78034492,0.00012998,2]
[327551412,1716221438112,-1000.0,0.00012999,2]
[327551413,1716221438122,-2689.83720364,0.00012999,2]
[327551414,1716221438131,-358248.38815156,0.00013,2]
[327551415,1716221438145,-6783.13598939,0.00013,2]
[327551417,1716221438267,-275.62582581,0.00013,2]
[327551419,1716221438283,-675.34937804,0.00013,2]
[327551431,1716221439697,-429.38122864,0.00013,2]
[327551432,1716221440578,-47259.96741003,0.00013,2]
[327551433,1716221440590,-284.78520748,0.00013,2]
[327551434,1716221440696,-335.61726856,0.00013,2]
[327551435,1716221440758,-329.53898838,0.00012898,2]
[327551436,1716221440771,-145.51368323,0.00013,2]
[327551437,1716221440790,-5420.43,0.00013,2]
[327551476,1716221442951,-439.36972649,0.00012898,2]
[327551477,1716221442961,-157.8049578,0.00012999,2]
[327551478,1716221442970,-155.0,0.00012999,2]
[327551479,1716221442980,-4279.50094,0.00012999,2]
[327551480,1716221442990,-4277.12917432,0.00012999,2]
[327551481,1716221443000,-429287.45692414,0.00013,2]
[327551482,1716221443010,-457.74988423,0.00013,2]
[327551483,1716221443020,-155.0,0.00013,2]
[327551484,1716221443030,-1500.0,0.00013,2]
[327551485,1716221443042,-1500.0,0.00013,2]
[327551486,1716221443051,-1500.0,0.00013,2]
[327551487,1716221443062,-1500.0,0.00013,2]
[327551488,1716221443072,-1500.0,0.00013,2]
[327551489,1716221443082,-1647.05,0.00013,2]
[327551490,1716221443092,-1500.0,0.00013,2]
[327551491,1716221443101,-1500.0,0.00013,2]
[327551492,1716221443111,-1500.0,0.00013,2]
[327551493,1716221443121,-1500.0,0.00013,2]
[327551494,1716221443130,-3049954.44520736,0.00013,2]
[327551495,1716221443140,-21355.31393427,0.00013,2]
[327551496,1716221443150,-1006.68345,0.00013,2]
[327551497,1716221443159,-1006.68346,0.00013,2]
[327551498,1716221443168,-1006.68346,0.00013,2]
[327551499,1716221443180,-1006.68346,0.00013,2]
[327551500,1716221443189,-500.0,0.00013,2]
[327551501,1716221443199,-500.0,0.0001307,2]
[327551502,1716221443209,-500.0,0.0001338,2]
[327551503,1716221443219,-1000.0,0.00013425,2]
[327551504,1716221443228,-434.923,0.00013581,2]
[327551505,1716221443237,-500.0,0.0001369,2]
[327551506,1716221443246,-200.0,0.00013699,2]
[327551507,1716221443255,-2751.0,0.00013699,2]
[327551508,1716221443264,-200.0,0.00013699,2]
[327551509,1716221443274,-500.0,0.00013699,2]
[327551510,1716221443283,-1500.0,0.00013699,2]
[327551511,1716221443292,-200.35990695,0.00013778,2]
[327551512,1716221443301,-150.0,0.0001384,2]
[327551513,1716221443311,-198.632,0.0001384,2]
[327551514,1716221443320,-1400.0,0.0001384,2]
[327551515,1716221443330,-557.328,0.0001384,2]
[327551516,1716221443339,-1321.0,0.0001384,2]
[327551517,1716221443348,-1262.0,0.0001384,2]
[327551518,1716221443358,-1000.0,0.00013853,2]
[327551519,1716221443367,-168.22,0.00013973,2]
[327551520,1716221443376,-586.98,0.00013973,2]
[327551521,1716221443386,-228.22,0.00013973,2]
[327551522,1716221443395,-160.02,0.00013973,2]
[327551523,1716221443404,-157.58,0.00013973,2]
[327551524,1716221443414,-500.0,0.00014,2]
[327551525,1716221443423,-500.0,0.0001431,2]
[327551526,1716221443435,-187.57809707,0.000149,2]
[327551527,1716221443445,-305.8,0.00014935,2]
[327551528,1716221443454,-257.65395905,0.00015,2]
[327551529,1716221443463,-1187.86344164,0.00015,2]
[327551530,1716221443472,-200.0,0.00015,2]
[327551531,1716221443482,-8091.83439501,0.00015,2]
[327551532,1716221443491,-1084.0,0.00015,2]
[327551533,1716221443500,-486.0,0.00015,2]
[327551534,1716221443521,-10262.0,0.00015,2]
[327551535,1716221443531,-200.0,0.00015004,2]
[327551536,1716221443540,-300.0,0.00015068,2]
[327551537,1716221443550,-201.96216976,0.00015106,2]
[327551538,1716221443559,-200.74327173,0.00015106,2]
[327551539,1716221443569,-320.87977804,0.00015197,2]
[327551540,1716221443579,-996.86,0.00015304,2]
[327551541,1716221443588,-1000.0,0.00015392,2]
[327551542,1716221443598,-9142.50126042,0.00015615,2]
[327551543,1716221443608,-200.0,0.00015706,2]
[327551544,1716221443618,-167.0,0.00015831,2]
[327551545,1716221443627,-500.0,0.0001589,2]
[327551546,1716221443637,-500.0,0.00016022,2]
[327551547,1716221443647,-150.0,0.00016066,3]
[327551548,1716221443656,-150.0,0.00016066,2]
[327551549,1716221443666,-5600.97,0.00016116,2]
[327551550,1716221443676,-167.0,0.00016354,2]
[327551551,1716221443688,-300.0,0.00016438,2]
[327551552,1716221443697,-420.73,0.00016478,2]
[327551553,1716221443707,-150.0,0.00016478,2]
[327551554,1716221443716,-351.8,0.00016478,2]
[327551555,1716221443726,-150.0,0.00016478,2]
[327551556,1716221443735,-420.73,0.00016478,2]
[327551557,1716221443744,-739.03,0.00016478,2]
[327551558,1716221443753,-163.42,0.00016478,2]
[327551559,1716221443763,-1400.0,0.0001684,2]
[327551560,1716221443777,-544.0,0.0001684,2]
[327551561,1716221443786,-1177.0,0.0001684,2]
[327551562,1716221443795,-1262.0,0.0001684,2]
[327551563,1716221443805,-167.0,0.00016876,2]
[327551564,1716221443816,-169.48925105,0.000169,2]
[327551565,1716221443825,-1000.0,0.00016931,2]
[327551566,1716221443835,-200.0,0.00017112,2]
[327551567,1716221443845,-1000.0,0.00017112,2]
[327551568,1716221443855,-500.0,0.00017112,2]
[327551569,1716221443864,-200.0,0.00017112,2]
[327551570,1716221443874,-305.8,0.00017198,2]
[327551571,1716221443883,-150.0,0.00017333,2]
[327551572,1716221443893,-167.0,0.00017399,2]
[327551573,1716221443903,-201.96216976,0.00017412,2]
[327551574,1716221443912,-200.74327173,0.00017412,2]
[327551575,1716221443922,-320.87977804,0.00017494,2]
[327551576,1716221443934,-167.0,0.00017921,2]
[327551577,1716221443943,-158.43327398,0.00018,2]
[327551578,1716221444239,-996.86,0.00018043,2]
[327551579,1716221444249,-9142.50126042,0.0001833,2]
[327551580,1716221444259,-167.0,0.00018444,2]
[327551581,1716221444268,-1000.0,0.00018471,2]
[327551582,1716221444278,-153.52,0.00018511,2]
[327551583,1716221444287,-627.99,0.00018592,2]
[327551584,1716221444296,-150.0,0.00018599,2]
[327551585,1716221444305,-150.0,0.00018933,2]
[327551586,1716221444315,-150.0,0.00018933,2]
[327551587,1716221444324,-1046.52,0.00018933,2]
[327551588,1716221444333,-579.0,0.000191,5]
[327551589,1716221444343,-405.05223305,0.00019178,2]
[327551590,1716221444352,-303.49490794,0.00019178,2]
[327551591,1716221444361,-491.92329575,0.00019178,2]
[327551592,1716221444370,-1091.86,0.000192,2]
[327551593,1716221444380,-909.4,0.000192,2]
[327551594,1716221444389,-200.0,0.00019219,2]
[327551595,1716221444408,-155.0,0.00019374,2]
[327551596,1716221444417,-305.8,0.00019462,2]
[327551597,1716221444428,-150.0,0.00019493,2]
[327551598,1716221444437,-906.44195135,0.000195,2]
[327551599,1716221444446,-120807.90085758,0.000195,7]
[327551600,1716221444455,-23955.62561013,0.0001956,2]
[327551601,1716221444464,-872.97063068,0.0001957,2]
[327551602,1716221444473,-2100.0,0.0001957,2]
[327551603,1716221444482,-71923.85564539,0.0001957,2]
[327551604,1716221444491,-500.0,0.0001957,2]
[327551605,1716221444501,-2002.88920699,0.0001957,2]
[327551606,1716221444510,-1994.37433957,0.0001957,2]
[327551607,1716221444519,-2000.0,0.0001958,2]
[327551608,1716221444529,-200.0,0.0001958,2]
[327551609,1716221444538,-2000.0,0.0001958,2]
[327551610,1716221444547,-200.0,0.0001958,2]
[327551611,1716221444556,-2000.0,0.0001959,2]
[327551612,1716221444566,-200.0,0.0001959,2]
[327551613,1716221444575,-19615.65373925,0.000196,2]
[327551614,1716221444584,-1120.49491487,0.000196,2]
[327551615,1716221444593,-1147.14345356,0.000196,2]
[327551616,1716221444602,-1275.57961827,0.000196,2]
[327551617,1716221444611,-150.0,0.0001961,2]
[327551618,1716221444621,-201.96216976,0.00019719,2]
[327551619,1716221444630,-200.74327173,0.00019719,2]
[327551620,1716221444639,-2000.0,0.00019776,2]
[327551621,1716221444649,-200.0,0.00019776,2]
[327551622,1716221444658,-2000.0,0.00019776,2]
[327551623,1716221444667,-200.0,0.00019776,2]
[327551624,1716221444679,-150.0,0.00019784,2]
[327551625,1716221444688,-2000.0,0.00019786,2]
[327551626,1716221444698,-200.0,0.00019786,2]
[327551627,1716221444706,-320.87977804,0.00019791,2]
[327551628,1716221444715,-18684.53572182,0.0001981,2]
[327551629,1716221444725,-1400.0,0.0001984,2]
[327551630,1716221444734,-544.0,0.0001984,2]
[327551631,1716221444743,-1177.0,0.0001984,2]
[327551632,1716221444753,-926.032,0.0001984,2]
[327551633,1716221444762,-150.0,0.00019866,2]
[327551634,1716221444773,-7377.00083301,0.00019943,2]
[327551635,1716221444786,-2000.0,0.00019974,2]
[327551636,1716221444796,-200.0,0.00019974,2]
[327551637,1716221444806,-2000.0,0.00019974,2]
[327551638,1716221444817,-200.0,0.00019974,2]
[327551639,1716221444826,-2000.0,0.00019984,2]
[327551640,1716221444835,-200.0,0.00019984,2]
[327551641,1716221444844,-155.13792102,0.00019998,2]
[327551642,1716221444855,-155.0,0.0002,2]
[327551643,1716221444867,-1654.66207998,0.0002,2]
[327551644,1716221444878,-196.01699939,0.0002,2]
[327551645,1716221444887,-256.54122443,0.0002,2]
[327551646,1716221444896,-1773.05966905,0.0002,2]
[327551647,1716221444906,-155.0,0.0002,2]
[327551648,1716221444916,-2423.84309643,0.0002,2]
[327551649,1716221444925,-9951.41287389,0.0002,2]
[327551650,1716221444936,-11973.14367307,0.0002,2]
[327551651,1716221444945,-1204.93554904,0.0002,2]
[327551652,1716221444954,-1049.69493307,0.0002,2]
[327551653,1716221444963,-155.0,0.0002,2]
[327551654,1716221444974,-151.0,0.0002,2]
[327551655,1716221444984,-390.49503,0.0002,2]
[327551656,1716221444993,-390.49503,0.0002,2]
[327551657,1716221445003,-151.0,0.0002,2]
[327551658,1716221445013,-151.0,0.0002,2]
[327551659,1716221445022,-151.0,0.0002,2]
[327551660,1716221445031,-151.0,0.0002,2]
[327551661,1716221445041,-151.0,0.0002,2]
[327551662,1716221445051,-176.99030041,0.0002,2]
[327551663,1716221445061,-343.0,0.0002,2]
[327551664,1716221445070,-194.0,0.0002,2]
[327551665,1716221445080,-1000.0,0.0002,2]
[327551666,1716221445089,-200.0,0.0002,2]
[327551667,1716221445098,-263.1548564,0.0002,2]
[327551668,1716221445107,-150.0,0.00020039,2]
[327551669,1716221445117,-500.0,0.00020136,2]
[327551670,1716221445128,-500.0,0.00020136,2]
[327551671,1716221445137,-2000.0,0.00020173,2]
[327551672,1716221445146,-200.0,0.00020173,2]
[327551673,1716221445155,-2000.0,0.00020173,2]
[327551674,1716221445165,-200.0,0.00020173,2]
[327551675,1716221445174,-1111.85743166,0.00020184,2]
[327551676,1716221445187,-200.0,0.00020184,2]
[327551677,1716221445196,-1990.49427576,0.0002025,2]
[327551678,1716221445205,-150.0,0.00020291,2]
[327551679,1716221445215,-2000.0,0.00020375,2]
[327551680,1716221445223,-200.0,0.00020375,2]
[327551681,1716221445233,-2000.0,0.00020375,2]
[327551682,1716221445242,-200.0,0.00020375,2]
[327551683,1716221445252,-168.22,0.00020447,2]
[327551684,1716221445262,-586.98,0.00020447,2]
[327551685,1716221445271,-228.22,0.00020447,2]
[327551686,1716221445281,-159.86030898,0.000205,2]
[327551687,1716221445290,-150.0,0.000205,2]
[327551688,1716221445299,-150.0,0.00020617,2]
[327551689,1716221445309,-150.0,0.00020681,2]
[327551690,1716221445318,-150.0,0.00020873,2]
[327551691,1716221445327,-4417.99,0.00020951,2]
[327551692,1716221445337,-1377.61483031,0.00021,2]
[327551693,1716221445348,-909.4,0.00021,2]
[327551694,1716221445357,-1091.86,0.00021,2]
[327551695,1716221445366,-150.0,0.00021,2]
[327551697,1716221445377,-153.02819882,0.00021017,2]
[327551698,1716221445388,-9142.50126042,0.00021044,2]
[327551701,1716221445398,-308.16874938,0.00021047,2]
[327551703,1716221445408,-308.16874938,0.00021049,2]
[327551705,1716221445418,-155.20003283,0.00021052,2]
[327551707,1716221445427,-308.16874938,0.0002106,2]
[327551708,1716221445438,-203.49019939,0.00021086,2]
[327551710,1716221445448,-155.20003283,0.00021105,2]
[327551712,1716221445457,-9114.63337868,0.0002111,2]
[327551716,1716221445481,-20342.2749696,0.0002111,2]
[327551718,1716221445490,-153.93988,0.00021124,2]
[327551720,1716221445499,-609.371507,0.00021189,2]
[327551722,1716221445509,-157.58,0.00021209,2]
[327551724,1716221445518,-151.0,0.00021224,2]
[327551725,1716221445527,-151.0,0.00021224,2]
[327551726,1716221445536,-151.0,0.00021224,2]
[327551727,1716221445546,-500.0,0.00021232,2]
[327551728,1716221445556,-500.0,0.00021232,2]
[327551729,1716221445565,-1952.74761605,0.00021234,2]
[327551730,1716221445575,-190.0,0.0002124,4]
[327551731,1716221445584,-153.87433227,0.00021281,2]
[327551732,1716221445603,-159.58194571,0.00021296,2]
[327551733,1716221445614,-191.21891157,0.00021302,2]
[327551734,1716221445624,-200.0,0.00021326,2]
[327551735,1716221445634,-1000.0,0.00021326,2]
[327551736,1716221445644,-200.0,0.00021326,2]
[327551737,1716221445654,-500.0,0.00021326,2]
[327551738,1716221445664,-200.0,0.00021326,2]
[327551739,1716221445675,-153.87433227,0.00021346,2]
[327551740,1716221445687,-151.30757905,0.0002135,2]
[327551741,1716221445697,-166.83499667,0.00021367,2]
[327551742,1716221445708,-6995.0,0.000214,3]
[327551743,1716221445718,-687.0,0.000214,2]
[327551744,1716221445728,-1000.0,0.000214,2]
[327551745,1716221445738,-153.18821612,0.00021405,2]
[327551746,1716221445749,-308.16874938,0.0002146,2]
[327551747,1716221445759,-153.87433227,0.00021467,2]
[327551748,1716221445771,-191.21891157,0.00021472,2]
[327551749,1716221445782,-158.6647796,0.00021473,2]
[327551750,1716221445792,-153.02819882,0.0002149,2]
[327551751,1716221445802,-1188.357082,0.00021495,2]
[327551752,1716221445815,-155.0,0.00021498,2]
[327551753,1716221445827,-155.57109697,0.00021498,2]
[327551754,1716221445838,-2968.66097405,0.00021498,2]